fUST/lending_fUST_20240728
["ID","MTS","AMOUNT","RATE_DAILY","PERIOD"]
[333461204,1722150651439,-500.0,0.00013698,2]
[333461205,1722150651449,-500.0,0.00013698,2]
[333461206,1722150651460,-198.48915871,0.00013698,2]
[333461207,1722150651471,-901.61,0.00013698,2]
[333461208,1722150651482,-500.0,0.00013698,2]
[333461209,1722150651492,-502.92443082,0.00013698,2]
[333461210,1722150651504,-500.0,0.00013698,2]
[333461211,1722150651516,-244.11971069,0.00013698,2]
[333461212,1722150651526,-500.0,0.00013698,2]
[333461213,1722150651536,-500.0,0.00013698,2]
[333461214,1722150651549,-917.92,0.00013698,2]
[333461215,1722150651559,-500.0,0.00013698,2]
[333461216,1722150651569,-516.245732,0.00013698,2]
[333461217,1722150651579,-500.0,0.00013698,2]
[333461218,1722150651590,-202.92156508,0.00013871,2]
[333461219,1722150651602,-742.19642382,0.00013872,2]
[333461220,1722150651613,-1409.0,0.00013921,2]
[333461221,1722150651624,-500.0,0.00013961,2]
[333461222,1722150651636,-20490.18819537,0.00013962,2]
[333461223,1722150651651,-6578.78805873,0.00013962,2]
[333461224,1722150651663,-500.0,0.00013971,2]
[333461225,1722150651673,-500.0,0.00013972,2]
[333461226,1722150651683,-500.0,0.00013972,2]
[333461227,1722150651693,-500.0,0.00013972,2]
[333461228,1722150651702,-444.32,0.00013972,2]
[333461229,1722150651712,-500.0,0.00013972,2]
[333461230,1722150651722,-500.0,0.00013972,2]
[333461231,1722150651731,-500.0,0.00013972,2]
[333461232,1722150651741,-500.0,0.00013972,2]
[333461233,1722150651751,-500.0,0.00013972,2]
[333461234,1722150651761,-500.0,0.00013972,2]
[333461235,1722150651771,-256.96813061,0.00013972,2]
[333461236,1722150679563,658.92613553,0.0001212,2]
[333461237,1722150742108,225.14386447,9.999e-05,2]
[333461238,1722150746676,942.05026838,9.999e-05,2]
[333461239,1722150754536,160.22528916,9.999e-05,2]
[333461240,1722150856676,335.30451218,9.999e-05,2]
[333461241,1722151153826,155.08922694,9.999e-05,2]
[333461242,1722151220260,307.50998983,0.000209,59]
[333461245,1722151627137,-184.37,0.00010959,2]
[333461246,1722151627157,-65.63,0.0001221,2]
[333461247,1722151640185,-422.7085822,0.0001221,2]
[333461248,1722151640208,-5668.9375464,0.00012368,2]
[333461249,1722151640230,-1285.196745,0.00012375,2]
[333461250,1722151653134,-409.8595519,0.0001221,2]
[333461251,1722151653159,-4173.6171985,0.00012375,2]
[333461252,1722151653183,-194.221676,0.00012903,2]
[333461253,1722151653207,-194.221676,0.00013239,2]
[333461254,1722151653229,-183.625884,0.00013425,2]
[333461255,1722151653254,-194.221676,0.00013575,2]
[333461256,1722151653278,-1192.2112025,0.00013598,2]
[333461257,1722151653300,-770.88052909,0.00013598,2]
[333461258,1722151653323,-302.31676788,0.00013688,2]
[333461259,1722151722719,200.0,0.0001,2]
[333461260,1722151747104,-200.0,0.0001137,2]
[333461261,1722151765379,240.29340387,9.999e-05,2]
[333461262,1722151765402,3.22508239,9.999e-05,2]
[333461296,1722151834008,-402.4521228,0.0001269,2]
[333461297,1722151834019,-183.625884,0.00013425,2]
[333461298,1722151834029,-674.52046298,0.00013598,2]
[333461299,1722151834038,-300.0,0.00013687,2]
[333461300,1722151834049,-5194.11472202,0.00013688,2]
[333461333,1722151838390,-845.716511,0.00013688,2]
[333461522,1722151843270,-953.768962,0.00013598,2]
[333461523,1722151843281,-346.57858764,0.00013688,2]
[333461524,1722151843290,-5135.89613337,0.00013688,2]
[333461525,1722151843301,-21238.78734573,0.00013688,2]
[333461526,1722151843310,-502.88910819,0.00013698,5]
[333461527,1722151843319,-500.0,0.00013698,2]
[333461528,1722151843328,-500.0,0.00013698,2]
[333461529,1722151843338,-500.0,0.00013698,2]
[333461530,1722151843348,-500.0,0.00013698,2]
[333461531,1722151843359,-500.0,0.00013698,2]
[333461532,1722151843368,-500.0,0.00013698,2]
[333461533,1722151843378,-500.0,0.00013698,2]
[333461534,1722151843388,-500.0,0.00013698,2]
[333461535,1722151843397,-500.0,0.00013698,2]
[333461536,1722151843407,-500.0,0.00013698,2]
[333461537,1722151843417,-559.82,0.00013698,2]
[333461538,1722151843428,-503.52815882,0.00013698,2]
[333461540,1722151843438,-500.0,0.00013698,2]
[333461542,1722151843448,-500.0,0.00013698,2]
[333461543,1722151843459,-500.0,0.00013698,2]
[333461544,1722151843468,-500.0,0.00013698,2]
[333461545,1722151843479,-500.0,0.00013698,2]
[333461546,1722151843488,-500.0,0.00013698,2]
[333461547,1722151843498,-572.49,0.00013698,2]
[333461548,1722151843508,-500.0,0.00013698,2]
[333461549,1722151843517,-504.32260669,0.00013698,2]
[333461550,1722151843526,-500.0,0.00013698,2]
[333461551,1722151843536,-506.10775999,0.00013698,2]
[333461552,1722151843546,-500.0,0.00013698,2]
[333461553,1722151843556,-500.0,0.00013698,2]
[333461554,1722151843566,-500.0,0.00013698,2]
[333461555,1722151843576,-500.0,0.00013698,2]
[333461556,1722151843585,-500.0,0.00013698,2]
[333461557,1722151843594,-500.0,0.00013698,2]
[333461558,1722151843604,-500.0,0.00013698,2]
[333461559,1722151843614,-367.18612404,0.00013698,2]
[333461560,1722151843624,-293.52521982,0.00013698,2]
[333461561,1722151843633,-500.0,0.00013698,2]
[333461562,1722151843643,-500.0,0.00013698,2]
[333461563,1722151843654,-500.0,0.00013698,2]
[333461564,1722151843664,-555.82786213,0.00013698,2]
[333461565,1722151843674,-500.0,0.00013698,2]
[333461566,1722151843684,-500.0,0.00013698,2]
[333461567,1722151843694,-500.0,0.00013698,2]
[333461568,1722151843709,-503.44656902,0.00013698,2]
[333461569,1722151843719,-500.0,0.00013698,2]
[333461570,1722151843730,-500.0,0.00013698,2]
[333461571,1722151843743,-500.0,0.00013698,2]
[333461572,1722151843752,-508.47711334,0.00013698,2]
[333461573,1722151843762,-500.0,0.00013698,2]
[333461574,1722151843775,-500.0,0.00013698,2]
[333461575,1722151843787,-506.22402931,0.00013698,2]
[333461576,1722151843798,-500.0,0.00013698,2]
[333461577,1722151843808,-514.76731381,0.00013698,2]
[333461578,1722151843819,-500.0,0.00013698,2]
[333461579,1722151843829,-500.0,0.00013698,2]
[333461580,1722151843838,-500.0,0.00013698,2]
[333461581,1722151843850,-500.0,0.00013698,2]
[333461582,1722151843859,-514.83220706,0.00013698,2]
[333461583,1722151843869,-500.0,0.00013698,2]
[333461584,1722151843879,-500.0,0.00013698,2]
[333461585,1722151843889,-500.0,0.00013698,2]
[333461586,1722151843899,-500.0,0.00013698,2]
[333461587,1722151843909,-500.0,0.00013698,2]
[333461588,1722151843919,-500.0,0.00013698,2]
[333461589,1722151843930,-500.0,0.00013698,2]
[333461590,1722151843941,-500.0,0.00013698,2]
[333461591,1722151843951,-240.14028747,0.00013698,2]
[333461592,1722151843961,-500.0,0.00013698,2]
[333461593,1722151843971,-500.0,0.00013698,2]
[333461594,1722151843980,-500.0,0.00013698,2]
[333461595,1722151843991,-500.0,0.00013698,2]
[333461596,1722151844002,-500.0,0.00013698,2]
[333461597,1722151844011,-500.0,0.00013698,2]
[333461598,1722151844021,-502.34,0.00013698,2]
[333461599,1722151844030,-500.0,0.00013698,2]
[333461600,1722151844041,-500.0,0.00013698,2]
[333461601,1722151844050,-500.0,0.00013698,2]
[333461602,1722151844059,-500.0,0.00013698,2]
[333461603,1722151844069,-235.69782262,0.00013698,2]
[333461604,1722151844079,-633.13,0.00013698,2]
[333461605,1722151844089,-500.0,0.00013698,2]
[333461606,1722151844098,-500.0,0.00013698,2]
[333461607,1722151844108,-500.0,0.00013698,2]
[333461608,1722151844118,-500.0,0.00013698,2]
[333461609,1722151844127,-900.51,0.00013698,2]
[333461610,1722151844136,-500.0,0.00013698,2]
[333461611,1722151844146,-500.0,0.00013698,2]
[333461612,1722151844156,-53.9448498,0.00013698,2]
[333461613,1722151844170,-838.9051502,0.00013698,2]
[333461614,1722151844180,-500.0,0.00013698,2]
[333461615,1722151844190,-500.0,0.00013698,2]
[333461616,1722151844200,-500.0,0.00013698,2]
[333461617,1722151844210,-500.0,0.00013698,2]
[333461618,1722151844219,-382.90950079,0.00013698,2]
[333461619,1722151844229,-500.0,0.00013698,2]
[333461620,1722151844239,-500.0,0.00013698,2]
[333461621,1722151844248,-51.76202794,0.00013698,2]
[333461622,1722151844260,-420.41154577,0.00013698,2]
[333461635,1722151846305,-27.82642629,0.00013698,2]
[333461636,1722151846315,-500.0,0.00013698,2]
[333461637,1722151846325,-500.0,0.00013698,2]
[333461638,1722151846335,-150.98016984,0.00013698,2]
[333461639,1722151846348,-502.3796954,0.00013698,2]
[333461640,1722151846360,-1931.91013476,0.00013698,2]
[333461641,1722151846370,-500.0,0.00013698,2]
[333461642,1722151846379,-594.07,0.00013698,2]
[333461643,1722151846389,-500.0,0.00013698,2]
[333461644,1722151846398,-500.0,0.00013698,2]
[333461645,1722151846409,-500.0,0.00013698,2]
[333461646,1722151846418,-1203.23,0.00013698,2]
[333461647,1722151846428,-500.0,0.00013698,2]
[333461648,1722151846438,-500.0,0.00013698,2]
[333461649,1722151846447,-500.0,0.00013698,2]
[333461650,1722151846456,-500.0,0.00013698,2]
[333461651,1722151846467,-500.0,0.00013698,2]
[333461652,1722151846477,-500.0,0.00013698,2]
[333461653,1722151846487,-500.0,0.00013698,2]
[333461654,1722151846497,-500.0,0.00013698,2]
[333461655,1722151846506,-500.0,0.00013698,2]
[333461656,1722151846516,-500.0,0.00013698,2]
[333461657,1722151846525,-500.0,0.00013698,2]
[333461658,1722151846535,-500.0,0.00013698,2]
[333461659,1722151846544,-500.0,0.00013698,2]
[333461660,1722151846700,-500.0,0.00013698,2]
[333461661,1722151846711,-500.0,0.00013698,2]
[333461662,1722151846723,-500.0,0.00013698,2]
[333461663,1722151846734,-500.0,0.00013698,2]
[333461664,1722151846748,-500.0,0.00013698,2]
[333461665,1722151846759,-500.0,0.00013698,2]
[333461666,1722151846770,-500.0,0.00013698,2]
[333461667,1722151846780,-898.63,0.00013698,2]
[333461668,1722151846792,-500.0,0.00013698,2]
[333461669,1722151846804,-500.0,0.00013698,2]
[333461670,1722151846814,-500.0,0.00013698,2]
[333461671,1722151846826,-527.6,0.00013698,2]
[333461672,1722151846838,-500.0,0.00013698,2]
[333461673,1722151846848,-500.0,0.00013698,2]
[333461674,1722151846858,-500.0,0.00013698,2]
[333461675,1722151846869,-500.0,0.00013698,2]
[333461676,1722151846878,-500.0,0.00013698,2]
[333461677,1722151846888,-500.0,0.00013698,2]
[333461678,1722151846897,-500.0,0.00013698,2]
[333461679,1722151846906,-500.0,0.00013698,2]
[333461680,1722151846915,-3045.60242127,0.00013698,2]
[333461681,1722151939624,243.67816151,9.9e-05,2]
[333461682,1722151939648,23.88470123,9.9e-05,2]
[333461696,1722152836128,-169.4134153,0.00011999,2]
[333461697,1722152836150,-70.49779292,0.0001217,2]
[333461698,1722152837110,-172.76659528,0.0001217,2]
[333461699,1722152837134,-300.0,0.00012258,2]
[333461700,1722152837156,-3143.79009991,0.00012259,2]
[333461701,1722152941276,154.66746495,9.999e-05,2]
[333461706,1722152945109,-12347.05,0.00012012,2]
[333461707,1722152948161,-1.5881343,0.00012012,2]
[333461708,1722152956256,154.66746495,9.999e-05,2]
[333461709,1722152967113,-159.202173,0.00012373,2]
[333461710,1722152967140,-159.202173,0.00012409,2]
[333461711,1722152967165,-159.202173,0.00012445,2]
[333461712,1722152967187,-159.202173,0.00012481,2]
[333461713,1722152967211,-159.202173,0.00012517,2]
[333461714,1722152967234,-159.202173,0.00012552,2]
[333461715,1722152967256,-159.202173,0.00012588,2]
[333461716,1722152967278,-159.202173,0.00012624,2]
[333461717,1722152967300,-159.202173,0.0001266,2]
[333461718,1722152967321,-159.202173,0.00012696,2]
[333461719,1722152967342,-159.202173,0.00012731,2]
[333461720,1722152967363,-159.202173,0.00012767,2]
[333461721,1722152967384,-89.573924,0.00012803,2]
[333461750,1722153032348,-242.2446997,0.00012326,2]
[333461751,1722153032359,-69.628249,0.00012803,2]
[333461752,1722153032369,-159.202173,0.00012839,2]
[333461753,1722153032379,-159.202173,0.00012875,2]
[333461754,1722153032389,-159.202173,0.0001291,2]
[333461755,1722153032400,-159.202173,0.00012946,2]
[333461756,1722153032412,-159.202173,0.00012982,2]
[333461757,1722153032423,-159.202173,0.00013018,2]
[333461758,1722153032433,-475.82585329,0.00013178,2]
[333461759,1722153032445,-112.10254031,0.00013178,2]
[333461761,1722153032456,-588.0374014,0.00013178,2]
[333461763,1722153032466,-295.5973559,0.000132,2]
[333461765,1722153032475,-207.095475,0.00013425,2]
[333461767,1722153032485,-294.0479944,0.00013478,2]
[333461769,1722153032495,-363.71077052,0.00013494,2]
[333461771,1722153032504,-294.0187007,0.000135,2]
[333461773,1722153032514,-4034.95818506,0.00013573,2]
[333461775,1722153032526,-310.0,0.00013573,2]
[333461778,1722153032538,-569.69286903,0.00013573,2]
[333461780,1722153032547,-590.20540509,0.00013588,2]
[333461782,1722153032557,-1143.21963457,0.000136,2]
[333461783,1722153032568,-439.565,0.000136,2]
[333461785,1722153032579,-1903.88651749,0.000136,2]
[333461786,1722153032588,-4504.11947334,0.00013688,2]
[333461788,1722153032600,-2028.89952765,0.00013688,2]
[333461821,1722153038306,-35504.25365451,0.00013688,5]
[333461823,1722153038316,-6055.63099901,0.00013688,2]
[333461825,1722153038325,-103441.780561,0.00013688,2]
[333461828,1722153038335,-2510.06441061,0.00013698,2]
[333461829,1722153038344,-735.22,0.00013698,2]
[333461831,1722153038354,-735.22,0.00013698,2]
[333461833,1722153038363,-735.22,0.00013698,2]
[333461835,1722153038372,-735.22,0.00013698,2]
[333461837,1722153038381,-735.22,0.00013698,2]
[333461839,1722153038391,-735.22,0.00013698,2]
[333461841,1722153038400,-735.22,0.00013698,2]
[333461842,1722153038409,-735.22,0.00013698,2]
[333461843,1722153038419,-735.22,0.00013698,2]
[333461844,1722153038428,-735.22,0.00013698,2]
[333461845,1722153038438,-735.22,0.00013698,2]
[333461846,1722153038448,-735.22,0.00013698,2]
[333461847,1722153038458,-735.22,0.00013698,2]
[333461848,1722153038468,-735.22,0.00013698,2]
[333461849,1722153038479,-735.22,0.00013698,2]
[333461850,1722153038489,-735.22,0.00013698,2]
[333461851,1722153038498,-735.22,0.00013698,2]
[333461852,1722153038508,-735.22,0.00013698,2]
[333461853,1722153038517,-735.22,0.00013698,2]
[333461854,1722153038526,-735.22,0.00013698,2]
[333461855,1722153038535,-735.22,0.00013698,2]
[333461856,1722153038546,-735.22,0.00013698,2]
[333461857,1722153038555,-735.22,0.00013698,2]
[333461858,1722153038566,-735.26,0.00013698,2]
[333461859,1722153038576,-562.74758183,0.00013698,2]
[333461860,1722153038586,-500.73758951,0.00013698,2]
[333461861,1722153038595,-500.0,0.00013698,2]
[333461862,1722153038604,-500.0,0.00013698,2]
[333461863,1722153038613,-500.0,0.00013698,2]
[333461864,1722153038622,-500.0,0.00013698,2]
[333461865,1722153038631,-500.0,0.00013698,2]
[333461866,1722153038640,-500.0,0.00013698,2]
[333461867,1722153038650,-309.90414721,0.00013698,2]
[333461868,1722153038659,-500.0,0.00013698,2]
[333461869,1722153038668,-500.0,0.00013698,2]
[333461870,1722153038678,-500.0,0.00013698,2]
[333461871,1722153038687,-500.0,0.00013698,2]
[333461872,1722153038697,-443.82543091,0.00013698,2]
[333461873,1722153038705,-500.0,0.00013698,2]
[333461874,1722153038716,-500.0,0.00013698,2]
[333461875,1722153038725,-500.0,0.00013698,2]
[333461876,1722153038734,-500.0,0.00013698,2]
[333461877,1722153038743,-500.0,0.00013698,2]
[333461878,1722153038754,-500.0,0.00013698,2]
[333461879,1722153038763,-500.0,0.00013698,2]
[333461880,1722153038772,-500.0,0.00013698,2]
[333461881,1722153038781,-500.0,0.00013698,2]
[333461882,1722153038790,-500.0,0.00013698,2]
[333461883,1722153038799,-255.93051149,0.00013698,2]
[333461884,1722153038808,-500.0,0.00013698,2]
[333461885,1722153038818,-500.0,0.00013698,2]
[333461886,1722153038827,-500.0,0.00013698,2]
[333461887,1722153038837,-500.0,0.00013698,2]
[333461888,1722153038846,-500.0,0.00013698,2]
[333461889,1722153038855,-500.0,0.00013698,2]
[333461890,1722153038865,-500.0,0.00013698,2]
[333461891,1722153038874,-500.0,0.00013698,2]
[333461892,1722153038883,-319.72917475,0.00013698,2]
[333461893,1722153038892,-500.0,0.00013698,2]
[333461894,1722153038902,-500.0,0.00013698,2]
[333461895,1722153038911,-500.0,0.00013698,2]
[333461896,1722153038920,-521.94960153,0.00013698,2]
[333461897,1722153038929,-518.13336715,0.00013698,2]
[333461898,1722153038939,-504.58950866,0.00013698,2]
[333461899,1722153038948,-500.0,0.00013698,2]
[333461900,1722153038958,-502.32427847,0.00013698,2]
[333461901,1722153038967,-504.97738466,0.00013698,2]
[333461902,1722153038976,-500.0,0.00013698,2]
[333461903,1722153038985,-215.96149014,0.00013698,2]
[333461904,1722153038994,-500.0,0.00013698,2]
[333461905,1722153039003,-500.0,0.00013698,2]
[333461906,1722153039012,-275.8101402,0.00013698,2]
[333461907,1722153039021,-503.46415389,0.00013698,2]
[333461908,1722153039039,-500.0,0.00013698,2]
[333461909,1722153039050,-500.0,0.00013698,2]
[333461910,1722153039060,-500.0,0.00013698,2]
[333461911,1722153039069,-500.0,0.00013698,2]
[333461912,1722153039081,-500.0,0.00013698,2]
[333461913,1722153039092,-504.63009937,0.00013698,2]
[333461914,1722153039101,-502.68601729,0.00013698,2]
[333461915,1722153039111,-500.0,0.00013698,2]
[333461916,1722153039121,-500.0,0.00013698,2]
[333461917,1722153039130,-500.0,0.00013698,2]
[333461918,1722153039139,-505.15405733,0.00013698,2]
[333461919,1722153039149,-233.61649993,0.00013698,2]
[333461920,1722153039160,-500.0,0.00013698,2]
[333461921,1722153039169,-500.0,0.00013698,2]
[333461922,1722153039179,-500.0,0.00013698,2]
[333461923,1722153039188,-500.0,0.00013698,2]
[333461924,1722153039198,-500.0,0.00013698,2]
[333461925,1722153039208,-505.55823353,0.00013698,2]
[333461926,1722153039218,-500.0,0.00013698,2]
[333461927,1722153039227,-500.0,0.00013698,2]
[333461928,1722153039237,-151.0,0.00013698,2]
[333461929,1722153039246,-500.0,0.00013698,2]
[333461930,1722153039255,-500.0,0.00013698,2]
[333461931,1722153039265,-500.0,0.00013698,2]
[333461932,1722153039275,-500.0,0.00013698,2]
[333461933,1722153039285,-500.0,0.00013698,2]
[333461934,1722153039294,-500.0,0.00013698,2]
[333461935,1722153039304,-500.0,0.00013698,2]
[333461936,1722153039313,-500.0,0.00013698,2]
[333461937,1722153039324,-501.31765663,0.00013698,2]
[333461938,1722153039336,-500.0,0.00013698,2]
[333461939,1722153039345,-509.08860012,0.00013698,2]
[333461940,1722153039354,-500.0,0.00013698,2]
[333461941,1722153039364,-500.0,0.00013698,2]
[333461942,1722153039373,-505.13821908,0.00013698,2]
[333461943,1722153039382,-501.99836143,0.00013698,2]
[333461944,1722153039392,-500.0,0.00013698,2]
[333461945,1722153039401,-500.0,0.00013698,2]
[333461946,1722153039411,-500.0,0.00013698,2]
[333461947,1722153039420,-500.0,0.00013698,2]
[333461948,1722153039429,-500.0,0.00013698,2]
[333461949,1722153039439,-500.0,0.00013698,2]
[333461950,1722153039448,-500.0,0.00013698,2]
[333461951,1722153039458,-500.0,0.00013698,2]
[333461952,1722153039467,-500.0,0.00013698,2]
[333461953,1722153039477,-507.80723506,0.00013698,2]
[333461954,1722153039486,-500.0,0.00013698,2]
[333461955,1722153039495,-500.0,0.00013698,2]
[333461956,1722153039505,-500.0,0.00013698,2]
[333461957,1722153039514,-503.53175823,0.00013698,2]
[333461958,1722153039524,-501.98865619,0.00013698,2]
[333461959,1722153039533,-500.0,0.00013698,2]
[333461960,1722153039542,-501.61864024,0.00013698,2]
[333461961,1722153039551,-500.0,0.00013698,2]
[333461962,1722153039560,-500.0,0.00013698,2]
[333461963,1722153039569,-500.0,0.00013698,2]
[333461964,1722153039578,-151.0,0.00013698,2]
[333461965,1722153039587,-151.0,0.00013698,2]
[333461966,1722153039597,-151.0,0.00013698,2]
[333461967,1722153039606,-151.0,0.00013698,2]
[333461968,1722153039615,-503.68887141,0.00013698,2]
[333461969,1722153039624,-500.0,0.00013698,2]
[333461970,1722153039633,-500.0,0.00013698,2]
[333461971,1722153039643,-500.0,0.00013698,2]
[333461972,1722153039653,-500.0,0.00013698,2]
[333461973,1722153039664,-500.0,0.00013698,2]
[333461974,1722153039674,-500.0,0.00013698,2]
[333461975,1722153039684,-500.0,0.00013698,2]
[333461976,1722153039693,-500.0,0.00013698,2]
[333461977,1722153039703,-500.0,0.00013698,2]
[333461978,1722153039712,-500.0,0.00013698,2]
[333461979,1722153039721,-500.0,0.00013698,2]
[333461980,1722153039731,-500.0,0.00013698,2]
[333461981,1722153039740,-501.22013388,0.00013698,2]
[333461982,1722153039749,-500.0,0.00013698,2]
[333461983,1722153039759,-514.48357762,0.00013698,2]
[333461984,1722153039768,-500.0,0.00013698,2]
[333461985,1722153039777,-500.0,0.00013698,2]
[333461986,1722153039787,-607.39199258,0.00013698,2]
[333461987,1722153039796,-500.91468756,0.00013698,2]
[333461988,1722153039805,-179.05800523,0.00013698,2]
[333461989,1722153039814,-421.16625893,0.00013698,2]
[333461994,1722153040453,-763.0151696,0.00013598,2]
[333461995,1722153040466,-78.83374107,0.00013698,2]
[333461996,1722153040475,-500.0,0.00013698,2]
[333461997,1722153040486,-500.0,0.00013698,2]
[333461998,1722153040495,-500.0,0.00013698,2]
[333461999,1722153040505,-151.0,0.00013698,2]
[333462000,1722153040515,-151.0,0.00013698,2]
[333462001,1722153040527,-151.0,0.00013698,2]
[333462002,1722153040539,-247.081169,0.00013698,2]
[333462003,1722153040550,-500.0,0.00013698,2]
[333462004,1722153040560,-500.0,0.00013698,2]
[333462005,1722153040571,-504.98451102,0.00013698,2]
[333462006,1722153040580,-500.0,0.00013698,2]
[333462007,1722153040589,-513.24129634,0.00013698,2]
[333462008,1722153040599,-146.8614038,0.00013698,2]
[333462009,1722153040613,-4.1385962,0.00013698,2]
[333462010,1722153040624,-151.0,0.00013698,2]
[333462011,1722153040633,-151.0,0.00013698,2]
[333462012,1722153040642,-151.0,0.00013698,2]
[333462013,1722153040652,-151.0,0.00013698,2]
[333462014,1722153040661,-500.0,0.00013698,2]
[333462015,1722153040670,-500.0,0.00013698,2]
[333462016,1722153040680,-500.0,0.00013698,2]
[333462017,1722153040689,-500.0,0.00013698,2]
[333462018,1722153040698,-500.0,0.00013698,2]
[333462019,1722153040852,-500.0,0.00013698,2]
[333462020,1722153040862,-500.0,0.00013698,2]
[333462021,1722153040872,-500.0,0.00013698,2]
[333462022,1722153040881,-500.0,0.00013698,2]
[333462023,1722153040891,-500.0,0.00013698,2]
[333462024,1722153040900,-500.0,0.00013698,2]
[333462025,1722153040909,-500.0,0.00013698,2]
[333462026,1722153040919,-500.0,0.00013698,2]
[333462027,1722153040928,-500.0,0.00013698,2]
[333462028,1722153040938,-500.0,0.00013698,2]
[333462029,1722153040947,-498.03383409,0.00013698,2]
[333462030,1722153040956,-500.0,0.00013698,2]
[333462031,1722153040966,-500.0,0.00013698,2]
[333462032,1722153040975,-506.28590501,0.00013698,2]
[333462033,1722153040985,-500.0,0.00013698,2]
[333462034,1722153040994,-500.0,0.00013698,2]
[333462035,1722153041003,-290.146662,0.00013698,2]
[333462036,1722153041012,-502.00121535,0.00013698,2]
[333462037,1722153041022,-500.0,0.00013698,2]
[333462038,1722153041031,-506.10749249,0.00013698,2]
[333462039,1722153041040,-500.0,0.00013698,2]
[333462040,1722153041049,-500.0,0.00013698,2]
[333462041,1722153041066,-504.23031542,0.00013698,2]
[333462042,1722153041083,-500.0,0.00013698,2]
[333462043,1722153041093,-500.0,0.00013698,2]
[333462044,1722153041103,-512.50882319,0.00013698,2]
[333462045,1722153041114,-500.0,0.00013698,2]
[333462046,1722153041126,-500.0,0.00013698,2]
[333462047,1722153041135,-153.77303456,0.00013698,2]
[333462048,1722153041146,-500.0,0.00013698,2]
[333462049,1722153041158,-500.0,0.00013698,2]
[333462050,1722153041168,-500.0,0.00013698,2]
[333462051,1722153041178,-500.0,0.00013698,2]
[333462052,1722153041187,-500.0,0.00013698,2]
[333462053,1722153041197,-500.0,0.00013698,2]
[333462054,1722153041208,-500.0,0.00013698,2]
[333462055,1722153041218,-504.48395285,0.00013698,2]
[333462056,1722153041228,-500.0,0.00013698,2]
[333462057,1722153041237,-151.0,0.00013698,2]
[333462058,1722153041247,-151.0,0.00013698,2]
[333462059,1722153041257,-151.0,0.00013698,2]
[333462060,1722153041268,-151.0,0.00013698,2]
[333462061,1722153041278,-151.0,0.00013698,2]
[333462062,1722153041288,-242.57750089,0.00013698,2]
[333462063,1722153041298,-151.0,0.00013698,2]
[333462064,1722153041308,-151.0,0.00013698,2]
[333462065,1722153041318,-500.0,0.00013698,2]
[333462066,1722153041328,-151.0,0.00013698,2]
[333462067,1722153041338,-299.380386,0.00013698,2]
[333462068,1722153041348,-500.0,0.00013698,2]
[333462069,1722153041358,-151.0,0.00013698,2]
[333462070,1722153041368,-500.0,0.00013698,2]
[333462071,1722153041377,-151.0,0.00013698,2]
[333462072,1722153041387,-151.0,0.00013698,2]
[333462073,1722153041396,-151.0,0.00013698,2]
[333462074,1722153041406,-151.0,0.00013698,2]
[333462075,1722153041416,-151.0,0.00013698,2]
[333462076,1722153041426,-151.0,0.00013698,2]
[333462077,1722153041437,-151.0,0.00013698,2]